[Event "Titled Tuesday Blitz March 29 Late 2022"]
[White "Ardila, Oscar Humberto"]
[Black "Jarocka, Liwia"]
[WhiteFideId "4404742"]
[BlackFideId "21807558"]
[WhiteElo "1966"]
[BlackElo "1896"]
[Result "1-0"]
[Round "04"]
[TimeControl "180+1"]
[Date "2022.03.30"]
[WhiteClock "0:00:08"]
[BlackClock "0:00:26"]

1. d4 {[%clk 0:02:57]}  c5 {[%clk 0:02:58]} 2. d5 {[%clk 0:02:57]}  d6 {[%clk 0:02:58]} 3. c4 {[%clk 0:02:57]}  Nf6 {[%clk 0:02:57]} 4. Nc3 {[%clk 0:02:57]}  g6 {[%clk 0:02:57]} 5. Nf3 {[%clk 0:02:56]}  Bg7 {[%clk 0:02:58]} 6. h3 {[%clk 0:02:56]}  e6 {[%clk 0:02:58]} 7. e4 {[%clk 0:02:55]}  exd5 {[%clk 0:02:58]} 8. cxd5 {[%clk 0:02:56]}  O-O {[%clk 0:02:59]} 9. Bd3 {[%clk 0:02:56]}  a6 {[%clk 0:02:58]} 10. a4 {[%clk 0:02:56]}  Re8 {[%clk 0:02:59]} 11. O-O {[%clk 0:02:56]}  Nbd7 {[%clk 0:02:55]} 12. Bf4 {[%clk 0:02:56]}  Ne5 {[%clk 0:02:49]} 13. Nxe5 {[%clk 0:02:45]}  dxe5 {[%clk 0:02:49]} 14. Be3 {[%clk 0:02:45]}  Nd7 {[%clk 0:02:46]} 15. a5 {[%clk 0:02:23]}  b5 {[%clk 0:02:44]} 16. axb6 {[%clk 0:02:21]}  Qxb6 {[%clk 0:02:44]} 17. Na4 {[%clk 0:02:18]}  Qb4 {[%clk 0:02:42]} 18. Qc2 {[%clk 0:02:13]}  Rb8 {[%clk 0:02:35]} 19. Nxc5 {[%clk 0:01:59]}  Qxb2 {[%clk 0:02:29]} 20. Nxa6 {[%clk 0:01:39]}  Qxc2 {[%clk 0:02:23]} 21. Bxc2 {[%clk 0:01:39]}  Rb2 {[%clk 0:02:22]} 22. Bd3 {[%clk 0:01:36]}  f5 {[%clk 0:02:04]} 23. f3 {[%clk 0:01:33]}  Rb3 {[%clk 0:01:57]} 24. Rfd1 {[%clk 0:01:19]}  Nf6 {[%clk 0:01:40]} 25. Nc5 {[%clk 0:01:15]}  Rc3 {[%clk 0:01:40]} 26. Na4 {[%clk 0:01:10]}  Rb3 {[%clk 0:01:36]} 27. Bg5 {[%clk 0:00:44]}  Nh5 {[%clk 0:01:31]} 28. Nc5 {[%clk 0:00:43]}  Rc3 {[%clk 0:01:29]} 29. Rac1 {[%clk 0:00:37]}  Rxc1 {[%clk 0:01:26]} 30. Rxc1 {[%clk 0:00:36]}  Nf4 {[%clk 0:01:26]} 31. Bc4 {[%clk 0:00:31]}  Kh8 {[%clk 0:01:15]} 32. d6 {[%clk 0:00:23]}  h6 {[%clk 0:01:01]} 33. Bxf4 {[%clk 0:00:19]}  exf4 {[%clk 0:01:02]} 34. d7 {[%clk 0:00:19]}  Bxd7 {[%clk 0:01:02]} 35. Nxd7 {[%clk 0:00:19]}  Rd8 {[%clk 0:01:02]} 36. Be6 {[%clk 0:00:17]}  fxe4 {[%clk 0:01:02]} 37. fxe4 {[%clk 0:00:17]}  Re8 {[%clk 0:01:02]} 38. Bd5 {[%clk 0:00:17]}  Re7 {[%clk 0:01:03]} 39. Nc5 {[%clk 0:00:16]}  Bd4+ {[%clk 0:01:02]} 40. Kf1 {[%clk 0:00:15]}  Be3 {[%clk 0:01:02]} 41. Rc4 {[%clk 0:00:13]}  Ra7 {[%clk 0:00:56]} 42. Ke2 {[%clk 0:00:12]}  Ra2+ {[%clk 0:00:55]} 43. Kd3 {[%clk 0:00:12]}  Rd2+ {[%clk 0:00:52]} 44. Kc3 {[%clk 0:00:11]}  Rxg2 {[%clk 0:00:53]} 45. Ne6 {[%clk 0:00:11]}  Rg1 {[%clk 0:00:38]} 46. Rc8+ {[%clk 0:00:10]}  Kh7 {[%clk 0:00:38]} 47. Rc7+ {[%clk 0:00:10]}  Kh8 {[%clk 0:00:38]} 48. Kd3 {[%clk 0:00:10]}  Rd1+ {[%clk 0:00:32]} 49. Ke2 {[%clk 0:00:10]}  Rd2+ {[%clk 0:00:30]} 50. Kf3 {[%clk 0:00:09]}  h5 {[%clk 0:00:31]} 51. Rc8+ {[%clk 0:00:08]}  Kh7 {[%clk 0:00:31]} 52. Rc7+ {[%clk 0:00:08]}  Kh8 {[%clk 0:00:31]} 53. Nxf4 {[%clk 0:00:08]}  Bxf4 {[%clk 0:00:26]} 54. Kxf4 {[%clk 0:00:08]}  Rg2 {[%clk 0:00:26]} 55. h4 {[%clk 0:00:07]}  Rg4+ {[%clk 0:00:26]} 56. Ke5 {[%clk 0:00:08]}  Rxh4 {[%clk 0:00:26]} 57. Kf6 {[%clk 0:00:08]} 1-0


[Site "https://www.chess.com"]

[Event "Titled Tuesday Blitz March 29 Late 2022"]
[White "Badelka, Olga"]
[Black "Goryachkina, Aleksandra"]
[WhiteFideId "13509926"]
[BlackFideId "4147103"]
[WhiteElo "2165"]
[BlackElo "2426"]
[Result "0-1"]
[Round "04"]
[TimeControl "180+1"]
[Date "2022.03.30"]
[WhiteClock "0:00:01"]
[BlackClock "0:00:04"]

1. c4 {[%clk 0:02:59]}  Nf6 {[%clk 0:02:59]} 2. Nc3 {[%clk 0:02:56]}  c5 {[%clk 0:02:58]} 3. Nf3 {[%clk 0:02:56]}  Nc6 {[%clk 0:02:58]} 4. d4 {[%clk 0:02:51]}  cxd4 {[%clk 0:02:58]} 5. Nxd4 {[%clk 0:02:52]}  e6 {[%clk 0:02:56]} 6. a3 {[%clk 0:02:46]}  Bc5 {[%clk 0:02:51]} 7. Nb3 {[%clk 0:02:46]}  Bb6 {[%clk 0:02:50]} 8. c5 {[%clk 0:02:46]}  Bc7 {[%clk 0:02:50]} 9. g3 {[%clk 0:02:47]}  O-O {[%clk 0:02:49]} 10. Bg2 {[%clk 0:02:46]}  b6 {[%clk 0:02:45]} 11. O-O {[%clk 0:02:32]}  Ba6 {[%clk 0:02:34]} 12. Bf4 {[%clk 0:02:15]}  Bxf4 {[%clk 0:02:21]} 13. gxf4 {[%clk 0:02:16]}  Rc8 {[%clk 0:01:41]} 14. Rc1 {[%clk 0:01:48]}  Nh5 {[%clk 0:01:17]} 15. Qd6 {[%clk 0:01:20]}  Qh4 {[%clk 0:01:02]} 16. f5 {[%clk 0:00:51]}  Nf4 {[%clk 0:00:56]} 17. Bf3 {[%clk 0:00:44]}  exf5 {[%clk 0:00:38]} 18. Kh1 {[%clk 0:00:41]}  Bc4 {[%clk 0:00:31]} 19. Nd2 {[%clk 0:00:38]}  Be6 {[%clk 0:00:31]} 20. cxb6 {[%clk 0:00:29]}  axb6 {[%clk 0:00:31]} 21. e3 {[%clk 0:00:20]}  Ng6 {[%clk 0:00:30]} 22. Bg2 {[%clk 0:00:19]}  f4 {[%clk 0:00:29]} 23. Nce4 {[%clk 0:00:17]}  Nce5 {[%clk 0:00:22]} 24. Qxb6 {[%clk 0:00:14]}  Rxc1 {[%clk 0:00:15]} 25. Rxc1 {[%clk 0:00:13]}  d5 {[%clk 0:00:11]} 26. Nc5 {[%clk 0:00:09]}  Ng4 {[%clk 0:00:06]} 27. h3 {[%clk 0:00:09]}  Nxf2+ {[%clk 0:00:05]} 28. Kg1 {[%clk 0:00:10]}  Nxh3+ {[%clk 0:00:05]} 29. Bxh3 {[%clk 0:00:07]}  Qg3+ {[%clk 0:00:05]} 30. Bg2 {[%clk 0:00:02]}  Bh3 {[%clk 0:00:05]} 31. Kf1 {[%clk 0:00:01]}  Bxg2+ {[%clk 0:00:04]} 32. Ke2 {[%clk 0:00:01]}  Qxe3+ {[%clk 0:00:04]} 33. Kd1 {[%clk 0:00:01]}  f3 {[%clk 0:00:02]} 34. Nd7 {[%clk 0:00:02]}  Qxb6 {[%clk 0:00:02]} 35. Nxb6 {[%clk 0:00:02]}  Re8 {[%clk 0:00:02]} 36. Kc2 {[%clk 0:00:02]}  f2 {[%clk 0:00:02]} 37. a4 {[%clk 0:00:02]}  Nf4 {[%clk 0:00:02]} 38. Nf1 {[%clk 0:00:02]}  Re1 {[%clk 0:00:01]} 39. Ng3 {[%clk 0:00:01]}  Rxc1+ {[%clk 0:00:01]} 40. Kxc1 {[%clk 0:00:02]}  f1=Q+ {[%clk 0:00:02]} 41. Nxf1 {[%clk 0:00:02]}  Bxf1 {[%clk 0:00:03]} 42. a5 {[%clk 0:00:02]}  h5 {[%clk 0:00:03]} 43. b4 {[%clk 0:00:01]}  h4 {[%clk 0:00:04]} 0-1


[Site "https://www.chess.com"]

[Event "Titled Tuesday Blitz March 29 Late 2022"]
[White "Batsiashvili, Nino"]
[Black "Le Goff, Ronan"]
[WhiteFideId "13602993"]
[BlackFideId "612073"]
[WhiteElo "2192"]
[BlackElo "2276"]
[Result "0-1"]
[Round "04"]
[TimeControl "180+1"]
[Date "2022.03.30"]
[WhiteClock "0:00:09"]
[BlackClock "0:00:09"]

1. d4 {[%clk 0:02:56]}  Nf6 {[%clk 0:02:59]} 2. c4 {[%clk 0:02:56]}  e6 {[%clk 0:02:59]} 3. Nc3 {[%clk 0:02:56]}  d5 {[%clk 0:02:59]} 4. Nf3 {[%clk 0:02:57]}  Be7 {[%clk 0:02:58]} 5. Bf4 {[%clk 0:02:56]}  O-O {[%clk 0:02:58]} 6. e3 {[%clk 0:02:57]}  a6 {[%clk 0:02:58]} 7. Rc1 {[%clk 0:02:53]}  c6 {[%clk 0:02:55]} 8. c5 {[%clk 0:02:53]}  Nbd7 {[%clk 0:02:52]} 9. Bd3 {[%clk 0:02:51]}  Re8 {[%clk 0:02:50]} 10. O-O {[%clk 0:02:49]}  Nf8 {[%clk 0:02:50]} 11. h3 {[%clk 0:02:49]}  Ng6 {[%clk 0:02:50]} 12. Bh2 {[%clk 0:02:49]}  Bd7 {[%clk 0:02:49]} 13. b4 {[%clk 0:02:43]}  b5 {[%clk 0:02:47]} 14. Ne5 {[%clk 0:02:37]}  Qc8 {[%clk 0:02:41]} 15. f4 {[%clk 0:02:36]}  Bd8 {[%clk 0:02:35]} 16. g4 {[%clk 0:02:36]}  a5 {[%clk 0:02:23]} 17. a3 {[%clk 0:02:35]}  axb4 {[%clk 0:02:23]} 18. axb4 {[%clk 0:02:36]}  Rf8 {[%clk 0:02:11]} 19. g5 {[%clk 0:02:23]}  Ne8 {[%clk 0:02:06]} 20. Qg4 {[%clk 0:02:23]}  f5 {[%clk 0:02:02]} 21. gxf6 {[%clk 0:02:23]}  Nxf6 {[%clk 0:02:01]} 22. Qe2 {[%clk 0:02:13]}  Be8 {[%clk 0:01:56]} 23. Kh1 {[%clk 0:02:08]}  Ra7 {[%clk 0:01:52]} 24. Rg1 {[%clk 0:02:08]}  Ne7 {[%clk 0:01:52]} 25. e4 {[%clk 0:02:01]}  dxe4 {[%clk 0:01:44]} 26. Nxe4 {[%clk 0:02:02]}  Nxe4 {[%clk 0:01:44]} 27. Qxe4 {[%clk 0:02:02]}  Nf5 {[%clk 0:01:44]} 28. Rg4 {[%clk 0:01:59]}  Bf6 {[%clk 0:01:36]} 29. Rcg1 {[%clk 0:01:53]}  Ra3 {[%clk 0:01:19]} 30. Bg3 {[%clk 0:01:49]}  Bxe5 {[%clk 0:01:04]} 31. fxe5 {[%clk 0:01:44]}  Bg6 {[%clk 0:00:53]} 32. Bf2 {[%clk 0:01:32]}  Ng3+ {[%clk 0:00:42]} 33. Bxg3 {[%clk 0:01:18]}  Bxe4+ {[%clk 0:00:40]} 34. Bxe4 {[%clk 0:01:19]}  g6 {[%clk 0:00:35]} 35. Bh4 {[%clk 0:00:48]}  Rxh3+ {[%clk 0:00:34]} 36. Kg2 {[%clk 0:00:48]}  Rxh4 {[%clk 0:00:31]} 37. Rxh4 {[%clk 0:00:49]}  Qd8 {[%clk 0:00:30]} 38. Rgh1 {[%clk 0:00:23]}  Qxd4 {[%clk 0:00:29]} 39. Bf3 {[%clk 0:00:20]}  Qd2+ {[%clk 0:00:26]} 40. Kg3 {[%clk 0:00:19]}  Qe3 {[%clk 0:00:23]} 41. Rf1 {[%clk 0:00:18]}  Qxe5+ {[%clk 0:00:21]} 42. Kg2 {[%clk 0:00:18]}  Qb2+ {[%clk 0:00:17]} 43. Rf2 {[%clk 0:00:18]}  Qf6 {[%clk 0:00:14]} 44. Rg4 {[%clk 0:00:17]}  Kg7 {[%clk 0:00:13]} 45. Rg3 {[%clk 0:00:16]}  Qd4 {[%clk 0:00:12]} 46. Rg4 {[%clk 0:00:14]}  Rf4 {[%clk 0:00:12]} 47. Rxf4 {[%clk 0:00:12]}  Qxf4 {[%clk 0:00:13]} 48. Bxc6 {[%clk 0:00:12]}  Qxb4 {[%clk 0:00:12]} 49. Rc2 {[%clk 0:00:10]}  Qb3 {[%clk 0:00:11]} 50. Be4 {[%clk 0:00:08]}  Qe3 {[%clk 0:00:10]} 51. Bf3 {[%clk 0:00:07]}  Qg5+ {[%clk 0:00:10]} 52. Kf2 {[%clk 0:00:07]}  Qh4+ {[%clk 0:00:09]} 53. Kg2 {[%clk 0:00:07]}  Qg5+ {[%clk 0:00:09]} 54. Kf2 {[%clk 0:00:08]}  Qf5 {[%clk 0:00:08]} 55. Re2 {[%clk 0:00:06]}  Qxc5+ {[%clk 0:00:08]} 56. Kg2 {[%clk 0:00:06]}  Qg5+ {[%clk 0:00:08]} 57. Kf2 {[%clk 0:00:06]}  e5 {[%clk 0:00:09]} 58. Rc2 {[%clk 0:00:06]}  Qf4 {[%clk 0:00:08]} 59. Rc7+ {[%clk 0:00:06]}  Kh6 {[%clk 0:00:08]} 60. Ke2 {[%clk 0:00:06]}  e4 {[%clk 0:00:09]} 61. Bxe4 {[%clk 0:00:07]}  Qxc7 {[%clk 0:00:08]} 62. Kd2 {[%clk 0:00:08]}  Qd6+ {[%clk 0:00:08]} 63. Bd3 {[%clk 0:00:09]}  b4 {[%clk 0:00:09]} 0-1


[Site "https://www.chess.com"]

[Event "Titled Tuesday Blitz March 29 Late 2022"]
[White "Belous, Vladimir"]
[Black "Ezat, Mohamed"]
[WhiteFideId "4174003"]
[BlackFideId "10600906"]
[WhiteElo "2534"]
[BlackElo "2386"]
[Result "1-0"]
[Round "04"]
[TimeControl "180+1"]
[Date "2022.03.29"]
[WhiteClock "0:00:52"]
[BlackClock "0:01:31"]

1. Nf3 {[%clk 0:03:00]}  Nf6 {[%clk 0:02:59]} 2. c4 {[%clk 0:03:01]}  g6 {[%clk 0:02:59]} 3. Nc3 {[%clk 0:03:01]}  Bg7 {[%clk 0:03:00]} 4. e4 {[%clk 0:03:02]}  O-O {[%clk 0:02:59]} 5. d4 {[%clk 0:03:02]}  d6 {[%clk 0:02:59]} 6. h3 {[%clk 0:03:02]}  e5 {[%clk 0:02:58]} 7. d5 {[%clk 0:03:03]}  Na6 {[%clk 0:02:56]} 8. Bg5 {[%clk 0:03:03]}  Nc5 {[%clk 0:02:56]} 9. b4 {[%clk 0:03:01]}  Ncd7 {[%clk 0:02:56]} 10. Be2 {[%clk 0:02:55]}  h6 {[%clk 0:02:53]} 11. Be3 {[%clk 0:02:52]}  a5 {[%clk 0:02:53]} 12. a3 {[%clk 0:02:52]}  Nh5 {[%clk 0:02:52]} 13. g3 {[%clk 0:02:48]}  f5 {[%clk 0:02:46]} 14. exf5 {[%clk 0:02:19]}  gxf5 {[%clk 0:02:44]} 15. Nd2 {[%clk 0:02:13]}  f4 {[%clk 0:02:24]} 16. Bxh5 {[%clk 0:02:04]}  fxe3 {[%clk 0:02:23]} 17. fxe3 {[%clk 0:02:05]}  Qg5 {[%clk 0:02:22]} 18. Nde4 {[%clk 0:02:01]}  Qxe3+ {[%clk 0:02:21]} 19. Qe2 {[%clk 0:02:01]}  Qxe2+ {[%clk 0:02:17]} 20. Kxe2 {[%clk 0:02:02]}  Nf6 {[%clk 0:02:17]} 21. Nxf6+ {[%clk 0:01:58]}  Rxf6 {[%clk 0:02:17]} 22. Ne4 {[%clk 0:01:58]}  Rf8 {[%clk 0:02:17]} 23. Bg4 {[%clk 0:01:55]}  Bxg4+ {[%clk 0:02:13]} 24. hxg4 {[%clk 0:01:56]}  Kf7 {[%clk 0:02:08]} 25. c5 {[%clk 0:01:53]}  dxc5 {[%clk 0:02:05]} 26. bxc5 {[%clk 0:01:53]}  Kg6 {[%clk 0:02:05]} 27. Rab1 {[%clk 0:01:51]}  Rab8 {[%clk 0:02:02]} 28. Rb5 {[%clk 0:01:51]}  Rfd8 {[%clk 0:02:01]} 29. Rd1 {[%clk 0:01:44]}  a4 {[%clk 0:01:56]} 30. Rb4 {[%clk 0:01:34]}  b5 {[%clk 0:01:53]} 31. d6 {[%clk 0:01:16]}  cxd6 {[%clk 0:01:50]} 32. cxd6 {[%clk 0:01:16]}  Bf8 {[%clk 0:01:49]} 33. Rd5 {[%clk 0:01:15]}  Kf7 {[%clk 0:01:43]} 34. g5 {[%clk 0:00:46]}  Ke6 {[%clk 0:01:40]} 35. Rdxb5 {[%clk 0:00:46]}  Rxb5 {[%clk 0:01:36]} 36. Rxb5 {[%clk 0:00:47]}  hxg5 {[%clk 0:01:36]} 37. Nxg5+ {[%clk 0:00:47]}  Kf5 {[%clk 0:01:34]} 38. Nf7 {[%clk 0:00:46]}  Ra8 {[%clk 0:01:26]} 39. d7 {[%clk 0:00:44]}  Be7 {[%clk 0:01:25]} 40. Rxe5+ {[%clk 0:00:45]}  Kf6 {[%clk 0:01:25]} 41. Rxe7 {[%clk 0:00:45]}  Kxe7 {[%clk 0:01:25]} 42. d8=Q+ {[%clk 0:00:46]}  Rxd8 {[%clk 0:01:24]} 43. Nxd8 {[%clk 0:00:47]}  Kxd8 {[%clk 0:01:25]} 44. Kd3 {[%clk 0:00:47]}  Ke7 {[%clk 0:01:25]} 45. Kc4 {[%clk 0:00:48]}  Kf6 {[%clk 0:01:25]} 46. Kb4 {[%clk 0:00:49]}  Kg5 {[%clk 0:01:26]} 47. Kxa4 {[%clk 0:00:50]}  Kg4 {[%clk 0:01:27]} 48. Kb5 {[%clk 0:00:51]}  Kxg3 {[%clk 0:01:28]} 49. a4 {[%clk 0:00:51]}  Kf4 {[%clk 0:01:28]} 50. Kc6 {[%clk 0:00:51]}  Ke5 {[%clk 0:01:29]} 51. a5 {[%clk 0:00:51]}  Ke6 {[%clk 0:01:29]} 52. a6 {[%clk 0:00:51]}  Ke7 {[%clk 0:01:30]} 53. a7 {[%clk 0:00:52]}  Kd8 {[%clk 0:01:31]} 54. a8=Q+ {[%clk 0:00:52]} 1-0


[Site "https://www.chess.com"]

[Event "Titled Tuesday Blitz March 29 Late 2022"]
[White "Bortnyk, Olexandr"]
[Black "Rastbod, Ali"]
[WhiteFideId "14120828"]
[BlackFideId "12567477"]
[WhiteElo "2723"]
[BlackElo "2200"]
[Result "1-0"]
[Round "04"]
[TimeControl "180+1"]
[Date "2022.03.29"]
[WhiteClock "0:00:06"]
[BlackClock "0:00:56"]

1. d4 {[%clk 0:03:00]}  Nf6 {[%clk 0:02:59]} 2. Nc3 {[%clk 0:03:01]}  d5 {[%clk 0:02:59]} 3. Bf4 {[%clk 0:03:01]}  e6 {[%clk 0:02:57]} 4. Nb5 {[%clk 0:03:00]}  Na6 {[%clk 0:02:57]} 5. e3 {[%clk 0:03:00]}  c6 {[%clk 0:02:53]} 6. Nc3 {[%clk 0:03:01]}  Bb4 {[%clk 0:02:53]} 7. Bxa6 {[%clk 0:03:00]}  bxa6 {[%clk 0:02:53]} 8. Ne2 {[%clk 0:03:00]}  O-O {[%clk 0:02:54]} 9. O-O {[%clk 0:03:01]}  c5 {[%clk 0:02:54]} 10. a3 {[%clk 0:02:58]}  Bxc3 {[%clk 0:02:54]} 11. Nxc3 {[%clk 0:02:59]}  cxd4 {[%clk 0:02:54]} 12. exd4 {[%clk 0:02:56]}  Bd7 {[%clk 0:02:54]} 13. Re1 {[%clk 0:02:55]}  Qb6 {[%clk 0:02:54]} 14. Rb1 {[%clk 0:02:54]}  Rac8 {[%clk 0:02:54]} 15. Be5 {[%clk 0:02:50]}  a5 {[%clk 0:02:53]} 16. Bxf6 {[%clk 0:02:48]}  gxf6 {[%clk 0:02:54]} 17. Qg4+ {[%clk 0:02:48]}  Kh8 {[%clk 0:02:54]} 18. Qh4 {[%clk 0:02:49]}  Rg8 {[%clk 0:02:45]} 19. Qxf6+ {[%clk 0:02:49]}  Rg7 {[%clk 0:02:46]} 20. Re3 {[%clk 0:02:42]}  Rg8 {[%clk 0:02:46]} 21. Rg3 {[%clk 0:02:22]}  Qd8 {[%clk 0:02:38]} 22. Qxd8 {[%clk 0:02:19]}  Rxd8 {[%clk 0:02:39]} 23. Rxg7 {[%clk 0:02:06]}  Kxg7 {[%clk 0:02:40]} 24. Nd1 {[%clk 0:02:06]}  Rc8 {[%clk 0:02:36]} 25. Ne3 {[%clk 0:02:06]}  a4 {[%clk 0:02:31]} 26. f4 {[%clk 0:02:04]}  h5 {[%clk 0:02:29]} 27. Kf2 {[%clk 0:02:04]}  f6 {[%clk 0:02:27]} 28. g3 {[%clk 0:02:01]}  f5 {[%clk 0:02:14]} 29. Ke2 {[%clk 0:01:14]}  Bb5+ {[%clk 0:02:14]} 30. Kd2 {[%clk 0:01:14]}  Kf6 {[%clk 0:02:15]} 31. b3 {[%clk 0:01:13]}  Rc6 {[%clk 0:01:57]} 32. Rg1 {[%clk 0:00:21]}  Rc8 {[%clk 0:01:52]} 33. b4 {[%clk 0:00:19]}  Rh8 {[%clk 0:01:48]} 34. Ng2 {[%clk 0:00:19]}  a6 {[%clk 0:01:45]} 35. Nh4 {[%clk 0:00:19]}  Rh7 {[%clk 0:01:35]} 36. Re1 {[%clk 0:00:20]}  Bd7 {[%clk 0:01:34]} 37. Nf3 {[%clk 0:00:20]}  Rh8 {[%clk 0:01:34]} 38. Re3 {[%clk 0:00:20]}  Bb5 {[%clk 0:01:14]} 39. Rc3 {[%clk 0:00:20]}  Bc4 {[%clk 0:01:14]} 40. Ne5 {[%clk 0:00:18]}  Rc8 {[%clk 0:01:15]} 41. Nxc4 {[%clk 0:00:14]}  dxc4 {[%clk 0:01:16]} 42. Re3 {[%clk 0:00:14]}  h4 {[%clk 0:01:12]} 43. Kc3 {[%clk 0:00:13]}  hxg3 {[%clk 0:01:12]} 44. hxg3 {[%clk 0:00:14]}  Rc7 {[%clk 0:01:07]} 45. Re1 {[%clk 0:00:13]}  Rc8 {[%clk 0:01:05]} 46. Rg1 {[%clk 0:00:12]}  Ke7 {[%clk 0:01:02]} 47. g4 {[%clk 0:00:12]}  fxg4 {[%clk 0:01:02]} 48. Rxg4 {[%clk 0:00:13]}  Kd6 {[%clk 0:01:02]} 49. Rg5 {[%clk 0:00:12]}  Rf8 {[%clk 0:01:01]} 50. Ra5 {[%clk 0:00:12]}  Rxf4 {[%clk 0:01:02]} 51. Kxc4 {[%clk 0:00:12]}  Rf2 {[%clk 0:01:00]} 52. Rxa6+ {[%clk 0:00:12]}  Kd7 {[%clk 0:01:00]} 53. c3 {[%clk 0:00:12]}  Rf4 {[%clk 0:00:59]} 54. Rxa4 {[%clk 0:00:07]}  e5 {[%clk 0:00:59]} 55. Kd5 {[%clk 0:00:07]}  e4 {[%clk 0:00:59]} 56. Ra7+ {[%clk 0:00:07]}  Kd8 {[%clk 0:00:59]} 57. Ra6 {[%clk 0:00:06]}  e3 {[%clk 0:00:55]} 58. Re6 {[%clk 0:00:06]}  Rf5+ {[%clk 0:00:56]} 59. Kc4 {[%clk 0:00:06]}  Rf3 {[%clk 0:00:56]} 60. a4 {[%clk 0:00:05]}  Kd7 {[%clk 0:00:56]} 61. Re5 {[%clk 0:00:06]}  Kd6 {[%clk 0:00:56]} 62. a5 {[%clk 0:00:06]} 1-0


[Site "https://www.chess.com"]

[Event "Titled Tuesday Blitz March 29 Late 2022"]
[White "Boyer, Mahel"]
[Black "Adewumi, Tanitoluwa"]
[WhiteFideId "45102422"]
[BlackFideId "30966396"]
[WhiteElo "2328"]
[BlackElo "2571"]
[Result "1-0"]
[Round "04"]
[TimeControl "180+1"]
[Date "2022.03.29"]
[WhiteClock "0:01:37"]
[BlackClock "0:00:05"]

1. e4 {[%clk 0:03:00]}  c5 {[%clk 0:02:56]} 2. d3 {[%clk 0:03:01]}  Nc6 {[%clk 0:02:47]} 3. g3 {[%clk 0:03:01]}  g6 {[%clk 0:02:44]} 4. Bg2 {[%clk 0:03:01]}  Bg7 {[%clk 0:02:45]} 5. f4 {[%clk 0:03:02]}  d6 {[%clk 0:02:41]} 6. Nf3 {[%clk 0:03:02]}  e6 {[%clk 0:02:34]} 7. O-O {[%clk 0:03:03]}  Nge7 {[%clk 0:02:32]} 8. c3 {[%clk 0:03:02]}  O-O {[%clk 0:02:06]} 9. Be3 {[%clk 0:02:57]}  b6 {[%clk 0:02:02]} 10. d4 {[%clk 0:02:56]}  Ba6 {[%clk 0:01:58]} 11. Re1 {[%clk 0:02:56]}  Rc8 {[%clk 0:01:56]} 12. Bf2 {[%clk 0:02:56]}  cxd4 {[%clk 0:01:53]} 13. cxd4 {[%clk 0:02:57]}  Nb4 {[%clk 0:01:35]} 14. Qa4 {[%clk 0:02:41]}  Nc2 {[%clk 0:00:49]} 15. Qxa6 {[%clk 0:02:37]}  Nxa1 {[%clk 0:00:48]} 16. Rd1 {[%clk 0:02:18]}  Qd7 {[%clk 0:00:43]} 17. Nc3 {[%clk 0:02:15]}  Nc2 {[%clk 0:00:42]} 18. a3 {[%clk 0:02:15]}  d5 {[%clk 0:00:20]} 19. e5 {[%clk 0:02:15]}  Qc6 {[%clk 0:00:14]} 20. Rc1 {[%clk 0:02:11]}  Nxa3 {[%clk 0:00:02]} 21. Qxa3 {[%clk 0:02:12]}  Nf5 {[%clk 0:00:03]} 22. g4 {[%clk 0:02:12]}  Nh6 {[%clk 0:00:02]} 23. h3 {[%clk 0:02:13]}  Rfd8 {[%clk 0:00:03]} 24. Qxa7 {[%clk 0:02:09]}  Ra8 {[%clk 0:00:02]} 25. Qe7 {[%clk 0:02:10]}  Bf8 {[%clk 0:00:01]} 26. Qh4 {[%clk 0:02:10]}  f6 {[%clk 0:00:02]} 27. exf6 {[%clk 0:02:10]}  Nf7 {[%clk 0:00:02]} 28. Bf1 {[%clk 0:02:06]}  Qd6 {[%clk 0:00:02]} 29. Ne5 {[%clk 0:02:06]}  Nxe5 {[%clk 0:00:01]} 30. fxe5 {[%clk 0:02:07]}  Qd7 {[%clk 0:00:02]} 31. Bb5 {[%clk 0:02:07]}  Qf7 {[%clk 0:00:03]} 32. Be3 {[%clk 0:02:06]}  Rac8 {[%clk 0:00:04]} 33. Rf1 {[%clk 0:02:06]}  Rc7 {[%clk 0:00:03]} 34. Qg3 {[%clk 0:02:04]}  Rdc8 {[%clk 0:00:04]} 35. h4 {[%clk 0:02:04]}  Bb4 {[%clk 0:00:02]} 36. Ne2 {[%clk 0:02:04]}  Rc2 {[%clk 0:00:03]} 37. Bc1 {[%clk 0:01:59]}  Bd2 {[%clk 0:00:03]} 38. Bxd2 {[%clk 0:01:56]}  Rxd2 {[%clk 0:00:04]} 39. Qa3 {[%clk 0:01:51]}  Rcc2 {[%clk 0:00:02]} 40. Qa8+ {[%clk 0:01:51]}  Qf8 {[%clk 0:00:02]} 41. f7+ {[%clk 0:01:48]}  Kg7 {[%clk 0:00:02]} 42. Qxf8+ {[%clk 0:01:48]}  Kxf8 {[%clk 0:00:03]} 43. Nf4 {[%clk 0:01:49]}  Kxf7 {[%clk 0:00:02]} 44. Nxd5+ {[%clk 0:01:49]}  Kg7 {[%clk 0:00:02]} 45. Nf4 {[%clk 0:01:48]}  h6 {[%clk 0:00:02]} 46. Nxe6+ {[%clk 0:01:48]}  Kg8 {[%clk 0:00:02]} 47. Nf4 {[%clk 0:01:32]}  g5 {[%clk 0:00:02]} 48. hxg5 {[%clk 0:01:33]}  hxg5 {[%clk 0:00:03]} 49. Ne2 {[%clk 0:01:34]}  Rxe2 {[%clk 0:00:03]} 50. Bxe2 {[%clk 0:01:34]}  Rxe2 {[%clk 0:00:04]} 51. Rf5 {[%clk 0:01:35]}  Rxb2 {[%clk 0:00:04]} 52. Rxg5+ {[%clk 0:01:35]}  Kf7 {[%clk 0:00:05]} 53. d5 {[%clk 0:01:36]}  Rd2 {[%clk 0:00:05]} 54. e6+ {[%clk 0:01:35]}  Ke7 {[%clk 0:00:05]} 55. Rg7+ {[%clk 0:01:35]}  Kf6 {[%clk 0:00:06]} 56. Rd7 {[%clk 0:01:36]}  b5 {[%clk 0:00:06]} 57. e7 {[%clk 0:01:37]}  Kf7 {[%clk 0:00:06]} 58. d6 {[%clk 0:01:37]}  Re2 {[%clk 0:00:05]} 59. Rd8 {[%clk 0:01:37]}  b4 {[%clk 0:00:05]} 60. Rf8+ {[%clk 0:01:37]}  Kg7 {[%clk 0:00:05]} 61. e8=Q {[%clk 0:01:38]}  Re7 {[%clk 0:00:05]} 62. Qxe7+ {[%clk 0:01:37]} 1-0


[Site "https://www.chess.com"]